Workbook

Sheet 表3-1 新增地方政府一般债券情况表
A1: 0 | B1: DEBT_T_XXGK_CXZQSY | C1: AND T.AD_CODE_GK=44 AND T.SET_YEAR_GK=2025 AND T.ZWLB_ID=01 | D1: 债券存续期公开
A2: 0 | B2: AD_CODE_GK#441300 | C2: AD_CODE#441300 | D2: SET_YEAR_GK#2025 | E2: ad_name#441300 惠州市本级 | F2: ZWLB_NAME#一般债券 | G2: ZWLB_ID#01
A3: 0 | B3: ZQ_NAME# | C3: ZQ_CODE# | E3: FXGM_AMT# | F3: SET_YEAR# | G3: FX_DATE# | H3: ZQ_RATE# | I3: ZQQX_NAME# | J3: XMZTZ# | K3: XMZTZ_ZQZJ# | L3: XMYTZ# | M3: XMYTZ_ZQZJ# | N3: REMARK# | O3: set_year# | P3: ZQ_ID# | Q3: ZQQX_ID#
A4: 0 | B4: 表3-1
A5: 0 | B5: 2024年惠州市本级发行的新增地方政府一般债券情况表
A6: 0 | N6: 单位：亿元
A7: 0 | C7: 债券基本信息 | J7: 债券项目总投资 | L7: 债券项目已实现投资 | N7: 备注
A8: 0 | B8: 债券名称 | C8: 债券编码 | D8: 债券类型 | E8: 债券规模 | G8: 发行时间（年/月/日） | H8: 债券利率(%) | I8: 债券期限 | K8: 其中：债券资金安排 | M8: 其中：债券资金安排
B9: 此表格无数据
B11: 注：本表由使用债券资金的部门不迟于每年6月底前公开，反映截至上年末一般债券及项目信息。

Sheet 表3-1 新增地方政府专项债券情况表
A1: 0 | B1: DEBT_T_XXGK_CXZQSY | C1: AND T.AD_CODE_GK=44 AND T.SET_YEAR_GK=2025 AND T.ZWLB_ID=02
A2: 0 | B2: AD_CODE_GK#441300 | C2: AD_CODE#441300 | D2: SET_YEAR_GK#2025 | E2: ad_name#441300 惠州市本级 | F2: ZWLB_NAME#专项债券 | G2: ZWLB_ID#02
A3: 0 | B3: ZQ_NAME# | C3: ZQ_CODE# | E3: FXGM_AMT# | F3: SET_YEAR# | G3: FX_DATE# | H3: ZQ_RATE# | I3: ZQQX_NAME# | J3: XMZCLX# | K3: XMZTZ# | L3: XMZTZ_ZQZJ# | M3: XMYTZ# | N3: XMYTZ_ZQZJ# | O3: XMSY# | Q3: REMARK# | R3: set_year# | S3: ZQ_ID# | T3: ZQQX_ID#
A4: 0 | B4: 表3-1
A5: 0 | B5: 2024年惠州市本级发行的新增地方政府专项债券情况表
A6: 0 | Q6: 单位：亿元
A7: 0 | C7: 债券基本信息 | J7: 债券项目资产类型 | K7: 债券项目总投资 | M7: 债券项目已实现投资 | O7: 已取得项目收益 | P7: 项目预期收益 | Q7: 备注
A8: 0 | B8: 债券名称 | C8: 债券编码 | D8: 债券类型 | E8: 债券规模 | G8: 发行时间（年/月/日） | H8: 债券利率(%) | I8: 债券期限 | L8: 其中：债券资金安排 | N8: 其中：债券资金安排
A9: VALID# | B9: 2024年广东省政府专项债券（六十四期） | C9: 198555 | D9: 其他领域专项债券 | E9: 3.19 | F9: 2024 | G9: 2024-08-30 | H9: 2.39 | I9: 20年 | K9: =SUM(K10:K11) -> 71.5373 | L9: 32.4900 | M9: 23.0500 | N9: 16.1700 | O9: 0.0000 | P9: 154.1680 | R9: 2024 | S9: 0011aa80690b11efbb8bf4b78df33865
B10: 仲恺高新区 | E10: 2.89 | J10: 市政公共基础设施（其他市政基础设施） | K10: 39.2096 | L10: 27.6900 | M10: 22.7400 | N10: 15.8700 | O10: 0.0000 | P10: 152.833529
B11: 大亚湾开发区 | E11: 0.30 | J11: 市政公共基础设施（其他市政基础设施） | K11: 32.3277 | L11: 4.8000 | M11: 0.3100 | N11: 0.3000 | O11: 0.0000 | P11: 1.3345
A12: VALID# | B12: 2024年广东省政府专项债券（二期） | C12: 2405019 | D12: 其他领域专项债券 | E12: 1.00 | F12: 2024 | G12: 2024-01-29 | H12: 2.65 | I12: 10年 | K12: =K13 -> 20.2218 | L12: 9.4800 | M12: 1.0000 | N12: 1.0000 | O12: 0.0000 | P12: 35.7658 | R12: 2024 | S12: 176c09efbf4611ee96ae30fd653ec18b
B13: 仲恺高新区 | E13: 1.00 | J13: 公共基础设施,市政公共基础设施（城市道路） | K13: 20.2218 | L13: 9.4800 | M13: 1.0000 | N13: 1.0000 | O13: 0.0000 | P13: 35.765771
A14: VALID# | B14: 2024年广东省政府专项债券（二十六期） | C14: 2405273 | D14: 其他领域专项债券 | E14: 1.70 | F14: 2024 | G14: 2024-05-08 | H14: 2.65 | I14: 30年 | K14: =K15+K16 -> 25.2198 | L14: 5.9900 | M14: 2.6600 | N14: 2.6600 | O14: 0.0000 | P14: 40.6501 | R14: 2024 | S14: 19d197e30dce11ef96ae30fd653ec18b
B15: 仲恺高新区 | E15: 0.20 | J15: 其他公共基础设施 | K15: 2.3050 | L15: 1.6100 | M15: 1.0600 | N15: 1.0600 | O15: 0.0000 | P15: 25.6752
B16: 大亚湾开发区 | E16: 1.50 | J16: 市政公共基础设施（其他市政基础设施） | K16: 22.9148 | L16: 4.3800 | M16: 1.6000 | N16: 1.6000 | O16: 0.0000 | P16: 14.9749
A17: VALID# | B17: 2024年广东省政府专项债券（十四期） | C17: 198455 | D17: 其他领域专项债券 | E17: 1.56 | F17: 2024 | G17: 2024-03-27 | H17: 2.41 | I17: 10年 | K17: =K18+K19 -> 78.5980 | L17: 41.9980 | M17: 42.8436 | N17: 28.5480 | O17: 0.0000 | P17: 135.0316 | R17: 2024 | S17: 1c934c49ed7b11ee96ae30fd653ec18b
B18: 其中：市直 | E18: 1.16 | J18: 其他公共基础设施、市政公共基础设施（城市排水和污水处理设施）、交通公共基础设施（铁路） | K18: 56.4590 | L18: 34.6280 | M18: 38.7936 | N18: 24.4980 | O18: 0.0000 | P18: 102.9919
B19: 仲恺高新区 | E19: 0.40 | J19: 其他公共基础设施 | K19: 22.1390 | L19: 7.3700 | M19: 4.0500 | N19: 4.0500 | O19: 0.0000 | P19: 32.0397
A20: VALID# | B20: 2024年广东省政府专项债券（二十三期） | C20: 2405270 | D20: 其他领域专项债券 | E20: 0.12 | F20: 2024 | G20: 2024-05-08 | H20: 2.45 | I20: 10年 | K20: =K21 -> 1.2737 | L20: 0.8900 | M20: 0.8197 | N20: 0.7400 | O20: 0.0000 | P20: 3.3600 | R20: 2024 | S20: 1efea5b90dd511ef96ae30fd653ec18b
B21: 其中：市直 | E21: 0.12 | J21: 其他公共基础设施 | K21: 1.2737 | L21: 0.8900 | M21: 0.8197 | N21: 0.7400 | O21: 0.0000 | P21: 3.3600
A22: VALID# | B22: 2024年广东省政府专项债券（三十八期） | C22: 2405338 | D22: 其他领域专项债券 | E22: 0.46 | F22: 2024 | G22: 2024-05-29 | H22: 2.62 | I22: 30年 | K22: =K23+K24 -> 40.9041 | L22: 13.8100 | M22: 10.9736 | N22: 10.9500 | O22: 0.0000 | P22: 43.6077 | R22: 2024 | S22: 26f01d8f1d8611ef96ae30fd653ec18b
B23: 其中：市直 | E23: 0.14 | J23: 其他公共基础设施 | K23: 5.1383 | L23: 4.3300 | M23: 3.4536 | N23: 3.4300 | O23: 0.0000 | P23: 7.8419
B24: 仲恺高新区 | E24: 0.32 | J24: 其他公共基础设施 | K24: 35.7658 | L24: 9.4800 | M24: 7.5200 | N24: 7.5200 | O24: 0.0000 | P24: 35.7658
A25: VALID# | B25: 2024年广东省政府专项债券（二十四期） | C25: 2405271 | D25: 其他领域专项债券 | E25: 2.82 | F25: 2024 | G25: 2024-05-08 | H25: 2.55 | I25: 15年 | J25: 公共基础设施,市政公共基础设施（城市道路） | K25: =K26+K27 -> 103.7193 | L25: 30.7700 | M25: 30.2967 | N25: 18.8900 | O25: 0.0000 | P25: 136.0587 | R25: 2024 | S25: 2827bd630dcd11ef96ae30fd653ec18b
B26: 仲恺高新区 | E26: 1.96 | J26: 公共基础设施,市政公共基础设施（城市道路） | K26: 34.2771 | L26: 11.5700 | M26: 7.8900 | N26: 7.8900 | O26: 0.0000 | P26: 69.9338
B27: 大亚湾开发区 | E27: 0.86 | J27: 市政公共基础设施（其他市政基础设施） | K27: 69.4422 | L27: 19.2000 | M27: 22.4067 | N27: 11.0000 | O27: 0.0000 | P27: 66.1248
A28: VALID# | B28: 2024年广东省政府专项债券（七十二期） | C28: 2405985 | D28: 其他领域专项债券 | E28: 2.30 | F28: 2024 | G28: 2024-09-25 | H28: 2.21 | I28: 20年 | J28: 其他公共基础设施,市政公共基础设施（其他市政基础设施）,市政公共基础设施（城市道路） | K28: =K29+K30 -> 53.7618 | L28: 26.5300 | M28: 24.2897 | N28: 17.9500 | O28: 0.0197 | P28: 96.3139 | R28: 2024 | S28: 304870a37b1611efbb8bf4b78df33865
B29: 其中：市直 | E29: 0.66 | J29: 其他公共基础设施、市政公共基础设施（公共文化体育设施） | K29: 9.0794 | L29: 6.5800 | M29: 5.2873 | N29: 2.9800 | O29: 0.0197 | P29: 16.0700
B30: 仲恺高新区 | E30: 1.64 | J30: 其他公共基础设施,市政公共基础设施（其他市政基础设施）,市政公共基础设施（城市道路） | K30: 44.6824 | L30: 19.9500 | M30: 19.0024 | N30: 14.9700 | O30: 0.0000 | P30: 80.2439
A31: VALID# | B31: 2024年广东省政府专项债券（二十八期） | C31: 2405275 | D31: 其他领域专项债券 | E31: 4.27 | F31: 2024 | G31: 2024-05-08 | H31: 2.55 | I31: 15年 | K31: =K32+K33 -> 99.7582 | L31: 31.1593 | M31: 22.7030 | N31: 17.3293 | O31: 0.0000 | P31: 90.0486 | R31: 2024 | S31: 3d75ea320dcf11ef96ae30fd653ec18b
B32: 仲恺高新区 | E32: 0.25 | J32: 公共基础设施,其他公共基础设施 | K32: 9.1111 | L32: 5.8700 | M32: 5.8095 | N32: 4.5000 | O32: 0.0000 | P32: 21.4022
B33: 大亚湾开发区 | E33: 4.02 | J33: 市政公共基础设施（公共文化体育设施）,市政公共基础设施（供水设施）,市政公共基础设施（其他市政基础设施） | K33: 90.6471 | L33: 25.2893 | M33: 16.8936 | N33: 12.8293 | O33: 0.0000 | P33: 68.6463
A34: VALID# | B34: 2024年广东省政府专项债券（三十六期） | C34: 2405336 | D34: 其他领域专项债券 | E34: 3.50 | F34: 2024 | G34: 2024-05-29 | H34: 2.56 | I34: 15年 | J34: 市政公共基础设施（其他市政基础设施）,市政公共基础设施（城市道路） | K34: =K35+K36+K37 -> 180.6361 | L34: 75.2578 | M34: 34.1179 | N34: 32.0800 | O34: 0.0000 | P34: 166.9218 | R34: 2024 | S34: 41aec83b1d8711ef96ae30fd653ec18b
B35: 其中：市直 | E35: 0.66 | J35: 其他公共基础设施 | K35: 6.4131 | L35: 5.5278 | M35: 0.6800 | N35: 0.6600 | O35: 0.0000 | P35: 7.3000
B36: 仲恺高新区 | E36: 0.58 | J36: 市政公共基础设施（其他市政基础设施）,市政公共基础设施（城市道路） | K36: 46.6976 | L36: 24.7900 | M36: 20.0200 | N36: 19.9000 | O36: 0.0000 | P36: 95.2695
B37: 大亚湾开发区 | E37: 2.26 | J37: 市政公共基础设施（城市道路）,市政公共基础设施（公共文化体育设施）,市政公共基础设施（其他市政基础设施） | K37: 127.5254 | L37: 44.9400 | M37: 13.4179 | N37: 11.5200 | O37: 0.0000 | P37: 64.3523
A38: VALID# | B38: 2024年广东省政府专项债券（六十期） | C38: 198551 | D38: 其他领域专项债券 | E38: 0.20 | F38: 2024 | G38: 2024-08-30 | H38: 2.12 | I38: 7年 | K38: =K39 -> 18.3962 | L38: 13.8200 | M38: 11.5000 | N38: 7.5000 | O38: 0.0000 | P38: 29.9900 | R38: 2024 | S38: 4276b997690211efbb8bf4b78df33865
B39: 其中：市直 | E39: 0.20 | J39: 市政公共基础设施（城市道路） | K39: 18.3962 | L39: 13.8200 | M39: 11.5000 | N39: 7.5000 | O39: 0.0000 | P39: 29.9900
A40: VALID# | B40: 2024年广东省政府专项债券（五期） | C40: 2405022 | D40: 其他领域专项债券 | E40: 4.75 | F40: 2024 | G40: 2024-01-29 | H40: 2.78 | I40: 30年 | K40: =K41+K42 -> 72.3470 | L40: 47.6080 | M40: 51.8939 | N40: 31.0580 | O40: 0.0000 | P40: 206.0143 | R40: 2024 | S40: 528c2bd9bf4c11ee96ae30fd653ec18b
B41: 其中：市直 | E41: 3.25 | J41: 交通公共基础设施（铁路） | K41: 45.1334 | L41: 25.5080 | M41: 31.9639 | N41: 18.3580 | O41: 0.0000 | P41: 79.8400
B42: 仲恺高新区 | E42: 1.50 | J42: 交通公共基础设施（铁路） | K42: 27.2136 | L42: 22.1000 | M42: 19.9300 | N42: 12.7000 | O42: 0.0000 | P42: 126.1743
A43: VALID# | B43: 2024年广东省政府专项债券（三期） | C43: 2405020 | D43: 其他领域专项债券 | E43: 0.85 | F43: 2024 | G43: 2024-01-29 | H43: 2.74 | I43: 15年 | K43: =K44 -> 23.7976 | L43: 10.0800 | M43: 7.4800 | N43: 7.4800 | O43: 0.0000 | P43: 27.8633 | R43: 2024 | S43: 62e1a921bf4911ee96ae30fd653ec18b
B44: 大亚湾开发区 | E44: 0.85 | J44: 市政公共基础设施（城市排水和污水处理设施） | K44: 23.7976 | L44: 10.0800 | M44: 7.4800 | N44: 7.4800 | O44: 0.0000 | P44: 27.8633
A45: VALID# | B45: 2024年广东省政府专项债券（三十五期） | C45: 2405335 | D45: 其他领域专项债券 | E45: 4.64 | F45: 2024 | G45: 2024-05-29 | H45: 2.42 | I45: 10年 | J45: 市政公共基础设施（城市道路） | K45: =K46+K47+K48 -> 282.7058 | L45: 96.2960 | M45: 90.8076 | N45: 61.4960 | O45: 0.0000 | P45: 349.5730 | R45: 2024 | S45: 67c651a51d8711ef96ae30fd653ec18b
B46: 其中：市直 | E46: 1.00 | J46: 市政公共基础设施（城市道路） | K46: 12.5552 | L46: 2.6400 | M46: 1.0000 | N46: 1.0000 | O46: 0.0000 | P46: 5.6300
B47: 仲恺高新区 | E47: 2.64 | J47: 市政公共基础设施（城市道路） | K47: 129.0381 | L47: 53.6560 | M47: 38.7909 | N47: 37.9960 | O47: 0.0000 | P47: 236.5970
B48: 大亚湾开发区 | E48: 1.00 | J48: 市政公共基础设施（其他市政基础设施） | K48: 141.1125 | L48: 40.0000 | M48: 51.0167 | N48: 22.5000 | O48: 0.0000 | P48: 107.3460
A49: VALID# | B49: 2024年广东省政府专项债券（十六期） | C49: 198457 | D49: 其他领域专项债券 | E49: 1.52 | F49: 2024 | G49: 2024-03-27 | H49: 2.67 | I49: 20年 | J49: 市政公共基础设施（城市道路） | K49: =K50 -> 97.4654 | L49: 41.2160 | M49: 4.8547 | N49: 1.5200 | O49: 0.0000 | P49: 171.0291 | R49: 2024 | S49: 6a3bf6fded6d11ee96ae30fd653ec18b
B50: 仲恺高新区 | E50: 1.52 | J50: 市政公共基础设施（城市道路） | K50: 97.4654 | L50: 41.2160 | M50: 4.8547 | N50: 1.5200 | O50: 0.0000 | P50: 171.0291
A51: VALID# | B51: 2024年广东省政府专项债券（四十七期） | C51: 198502 | D51: 其他领域专项债券 | E51: 1.35 | F51: 2024 | G51: 2024-06-12 | H51: 2.51 | I51: 15年 | J51: 市政公共基础设施（其他市政基础设施） | K51: =K52+K53 -> 55.9056 | L51: 21.4178 | M51: 7.1952 | N51: 7.1500 | O51: 0.0000 | P51: 47.2431 | R51: 2024 | S51: 6d8c7e30279f11efab9630fd653ec18b
B52: 其中：市直 | E52: 0.42 | J52: 其他公共基础设施 | K52: 6.4131 | L52: 5.5278 | M52: 1.1000 | N52: 1.0800 | O52: 0.0000 | P52: 7.3000
B53: 大亚湾开发区 | E53: 0.93 | J53: 市政公共基础设施（其他市政基础设施） | K53: 49.4925 | L53: 15.8900 | M53: 6.0952 | N53: 6.0700 | O53: 0.0000 | P53: 39.9431
A54: VALID# | B54: 2024年广东省政府专项债券（四期） | C54: 2405021 | D54: 其他领域专项债券 | E54: 2.20 | F54: 2024 | G54: 2024-01-29 | H54: 2.78 | I54: 20年 | J54: 市政公共基础设施（城市道路） | K54: =K55 -> 53.1451 | L54: 26.2960 | M54: 6.5547 | N54: 2.2000 | O54: 0.0000 | P54: 101.8336 | R54: 2024 | S54: 73a08e00bf4b11ee96ae30fd653ec18b
B55: 仲恺高新区 | E55: 2.20 | J55: 市政公共基础设施（城市道路） | K55: 53.1451 | L55: 26.2960 | M55: 6.5547 | N55: 2.2000 | O55: 0.0000 | P55: 101.8336
A56: VALID# | B56: 2024年广东省政府专项债券（三十四期） | C56: 2405334 | D56: 其他领域专项债券 | E56: 2.00 | F56: 2024 | G56: 2024-05-29 | H56: 2.31 | I56: 7年 | K56: =K57 -> 18.3962 | L56: 13.8200 | M56: 11.3000 | N56: 7.3000 | O56: 0.0000 | P56: 29.9900 | R56: 2024 | S56: 76d14a381d8611ef96ae30fd653ec18b
B57: 其中：市直 | E57: 2.00 | J57: 市政公共基础设施（城市道路） | K57: 18.3962 | L57: 13.8200 | M57: 11.3000 | N57: 7.3000 | O57: 0.0000 | P57: 29.9900
A58: VALID# | B58: 2024年广东省政府专项债券（十八期） | C58: 198459 | D58: 其他领域专项债券 | E58: 0.40 | F58: 2024 | G58: 2024-03-27 | H58: 2.36 | I58: 10年 | K58: =K59 -> 5.1974 | L58: 4.0869 | M58: 2.5405 | N58: 1.4300 | O58: 0.0000 | P58: 25.8500 | R58: 2024 | S58: 89e165f2ed7811ee96ae30fd653ec18b
B59: 其中：市直 | E59: 0.40 | J59: 其他公共基础设施 | K59: 5.1974 | L59: 4.0869 | M59: 2.5405 | N59: 1.4300 | O59: 0.0000 | P59: 25.8500
A60: VALID# | B60: 2024年广东省政府专项债券（十三期） | C60: 198454 | D60: 其他领域专项债券 | E60: 0.19 | F60: 2024 | G60: 2024-03-27 | H60: 2.39 | I60: 7年 | J60: 市政公共基础设施（其他市政基础设施） | K60: =K61 -> 8.3262 | L60: 6.0800 | M60: 2.9320 | N60: 0.6900 | O60: 0.0000 | P60: 14.3900 | R60: 2024 | S60: 8f9c5f33ed7011ee96ae30fd653ec18b
B61: 其中：市直 | E61: 0.19 | J61: 其他公共基础设施 | K61: 8.3262 | L61: 6.0800 | M61: 2.9320 | N61: 0.6900 | O61: 0.0000 | P61: 14.3900
A62: VALID# | B62: 2024年广东省政府专项债券（六十二期） | C62: 198553 | D62: 其他领域专项债券 | E62: 5.51 | F62: 2024 | G62: 2024-08-30 | H62: 2.22 | I62: 10年 | K62: =K63+K64 -> 365.5042 | L62: 123.6690 | M62: 112.3248 | N62: 67.1790 | O62: 0.0000 | P62: 282.6665 | R62: 2024 | S62: 990053a7690811efbb8bf4b78df33865
B63: 其中：市直 | E63: 0.23 | J63: 其他公共基础设施、市政公共基础设施（城市道路） | K63: 17.6935 | L63: 6.9700 | M63: 4.6836 | N63: 4.6600 | O63: 0.0000 | P63: 13.4719
B64: 大亚湾开发区 | E64: 5.28 | J64: 市政公共基础设施（城市排水和污水处理设施）,市政公共基础设施（其他市政基础设施） | K64: 347.8107 | L64: 116.6990 | M64: 107.6412 | N64: 62.5190 | O64: 0.0000 | P64: 269.1946
A65: VALID# | B65: 2024年广东省政府专项债券（十二期） | C65: 198453 | D65: 其他领域专项债券 | E65: 0.55 | F65: 2024 | G65: 2024-03-27 | H65: 2.27 | I65: 5年 | K65: =K66 -> 18.3962 | L65: 13.8200 | M65: 8.4300 | N65: 4.5300 | O65: 0.0000 | P65: 29.9900 | R65: 2024 | S65: 9bddbe9fed7b11ee96ae30fd653ec18b
B66: 其中：市直 | E66: 0.55 | J66: 市政公共基础设施（城市道路） | K66: 18.3962 | L66: 13.8200 | M66: 8.4300 | N66: 4.5300 | O66: 0.0000 | P66: 29.9900
A67: VALID# | B67: 2024年广东省政府专项债券（二十九期） | C67: 2405276 | D67: 其他领域专项债券 | E67: 0.90 | F67: 2024 | G67: 2024-05-08 | H67: 2.62 | I67: 20年 | K67: =K68 -> 2.8000 | L67: 2.2400 | M67: 0.9000 | N67: 0.9000 | O67: 0.0000 | P67: 9.6390 | R67: 2024 | S67: a2857acd0dcd11ef96ae30fd653ec18b
B68: 仲恺高新区 | E68: 0.90 | J68: 其他公共基础设施 | K68: 2.8000 | L68: 2.2400 | M68: 0.9000 | N68: 0.9000 | O68: 0.0000 | P68: 9.6390
A69: VALID# | B69: 2024年广东省政府专项债券（七十四期） | C69: 2471078 | D69: 其他领域专项债券 | E69: 1.36 | F69: 2024 | G69: 2024-10-22 | H69: 2.06 | I69: 7年 | K69: =K70 -> 30.9514 | L69: 16.4600 | M69: 13.9900 | N69: 9.9900 | O69: 0.0000 | P69: 35.6200 | R69: 2024 | S69: a54f20e58f4e11efbb8bf4b78df33865
B70: 其中：市直 | E70: 1.36 | J70: 市政公共基础设施（城市道路）、市政公共基础设施（城市道路） | K70: 30.9514 | L70: 16.4600 | M70: 13.9900 | N70: 9.9900 | O70: 0.0000 | P70: 35.6200
A71: VALID# | B71: 2024年广东省政府专项债券（六十三期） | C71: 198554 | D71: 其他领域专项债券 | E71: 0.32 | F71: 2024 | G71: 2024-08-30 | H71: 2.3 | I71: 15年 | K71: =K72 -> 1.5443 | L71: 0.5300 | M71: 0.4884 | N71: 0.4100 | O71: 0.0000 | P71: 0.9409 | R71: 2024 | S71: a71e6275690511efbb8bf4b78df33865
B72: 大亚湾开发区 | E72: 0.32 | J72: 市政公共基础设施（其他市政基础设施） | K72: 1.5443 | L72: 0.5300 | M72: 0.4884 | N72: 0.4100 | O72: 0.0000 | P72: 0.9409
A73: VALID# | B73: 2024年广东省政府专项债券（六十八期） | C73: 2405981 | D73: 其他领域专项债券 | E73: 1.35 | F73: 2024 | G73: 2024-09-25 | H73: 1.97 | I73: 7年 | J73: 市政公共基础设施（其他市政基础设施） | K73: =K74 -> 13.2138 | L73: 10.9678 | M73: 6.5100 | N73: 6.4800 | O73: 0.0000 | P73: 15.7000 | R73: 2024 | S73: b3791ccd7afb11efbb8bf4b78df33865
B74: 其中：市直 | E74: 1.35 | J74: 其他公共基础设施 | K74: 13.2138 | L74: 10.9678 | M74: 6.5100 | N74: 6.4800 | O74: 0.0000 | P74: 15.7000
A75: VALID# | B75: 2024年广东省政府专项债券（四十期） | C75: 2405340 | D75: 其他领域专项债券 | E75: 0.84 | F75: 2024 | G75: 2024-05-29 | H75: 2.56 | I75: 15年 | K75: =K76+K77 -> 90.8138 | L75: 24.3693 | M75: 19.9030 | N75: 14.6093 | O75: 0.0000 | P75: 74.9253 | R75: 2024 | S75: b7d023fb1d8811ef96ae30fd653ec18b
B76: 仲恺高新区 | E76: 0.14 | J76: 市政公共基础设施（其他市政基础设施） | K76: 5.7307 | L76: 2.9000 | M76: 4.1295 | N76: 2.9000 | O76: 0.0000 | P76: 12.9476
B77: 大亚湾开发区 | E77: 0.70 | J77: 市政公共基础设施（供水设施）,市政公共基础设施（其他市政基础设施） | K77: 85.0831 | L77: 21.4693 | M77: 15.7736 | N77: 11.7093 | O77: 0.0000 | P77: 61.9778
A78: VALID# | B78: 2024年广东省政府专项债券（二十七期） | C78: 2405274 | D78: 其他领域专项债券 | E78: 0.32 | F78: 2024 | G78: 2024-05-08 | H78: 2.44 | I78: 10年 | K78: =K79 -> 5.1974 | L78: 4.0869 | M78: 2.8605 | N78: 1.7500 | O78: 0.0000 | P78: 25.8500 | R78: 2024 | S78: ba21769b0dd511ef96ae30fd653ec18b
B79: 其中：市直 | E79: 0.32 | J79: 其他公共基础设施 | K79: 5.1974 | L79: 4.0869 | M79: 2.8605 | N79: 1.7500 | O79: 0.0000 | P79: 25.8500
A80: VALID# | B80: 2024年广东省政府专项债券（七十八期） | C80: 2471082 | D80: 其他领域专项债券 | E80: 3.42 | F80: 2024 | G80: 2024-10-22 | H80: 2.36 | I80: 30年 | K80: =K81 -> 44.2336 | L80: 20.6400 | M80: 4.9330 | N80: 3.4200 | O80: 0.0000 | P80: 118.4428 | R80: 2024 | S80: bc36247d8f5311efbb8bf4b78df33865
B81: 仲恺高新区 | E81: 3.42 | J81: 市政公共基础设施（其他市政基础设施）,市政公共基础设施（城市道路） | K81: 44.2336 | L81: 20.6400 | M81: 4.9330 | N81: 3.4200 | O81: 0.0000 | P81: 118.4428
A82: VALID# | B82: 2024年广东省政府专项债券（四十一期） | C82: 2405341 | D82: 其他领域专项债券 | E82: 1.67 | F82: 2024 | G82: 2024-05-29 | H82: 2.62 | I82: 20年 | J82: 市政公共基础设施（其他市政基础设施） | K82: =K83 -> 13.5236 | L82: 10.1669 | M82: 6.9725 | N82: 4.6200 | O82: 0.0000 | P82: 40.2400 | R82: 2024 | S82: bd89c05d1d8711ef96ae30fd653ec18b
B83: 其中：市直 | E83: 1.67 | J83: 其他公共基础设施 | K83: 13.5236 | L83: 10.1669 | M83: 6.9725 | N83: 4.6200 | O83: 0.0000 | P83: 40.2400
A84: VALID# | B84: 2024年广东省政府专项债券（七十七期） | C84: 2471081 | D84: 其他领域专项债券 | E84: 7.58 | F84: 2024 | G84: 2024-10-22 | H84: 2.37 | I84: 20年 | J84: 市政公共基础设施（其他市政基础设施）,市政公共基础设施（城市道路） | K84: =K85+K86+K87 -> 209.1213 | L84: 85.9312 | M84: 70.2533 | N84: 48.8034 | O84: 0.0000 | P84: 310.8409 | R84: 2024 | S84: bdc68eb08f5111efbb8bf4b78df33865
B85: 其中：市直 | E85: 1.45 | J85: 其他公共基础设施、交通公共基础设施（港口） | K85: 20.6123 | L85: 12.7878 | M85: 9.0605 | N85: 6.6800 | O85: 0.0000 | P85: 31.0700
B86: 仲恺高新区 | E86: 5.44 | J86: 市政公共基础设施（其他市政基础设施）,市政公共基础设施（城市道路） | K86: 104.4817 | L86: 57.7360 | M86: 49.5197 | N86: 38.0260 | O86: 0.0000 | P86: 260.8500
B87: 大亚湾开发区 | E87: 0.69 | J87: 市政公共基础设施（公共文化体育设施）,市政公共基础设施（其他市政基础设施） | K87: 84.0273 | L87: 15.4074 | M87: 11.6731 | N87: 4.0974 | O87: 0.0000 | P87: 18.9209
A88: VALID# | B88: 2024年广东省政府专项债券（七期） | C88: 2405024 | D88: 其他领域专项债券 | E88: 1.73 | F88: 2024 | G88: 2024-01-29 | H88: 2.74 | I88: 15年 | K88: =K89+K90+K91 -> 18.5659 | L88: 13.5393 | M88: 10.5480 | N88: 9.0393 | O88: 0.0000 | P88: 34.3359 | R88: 2024 | S88: c10f5a6cbf4811ee96ae30fd653ec18b
B89: 其中：市直 | E89: 0.50 | J89: 其他公共基础设施 | K89: 6.8007 | L89: 5.4400 | M89: 3.0500 | N89: 3.0500 | O89: 0.0000 | P89: 8.4000
B90: 仲恺高新区 | E90: 0.70 | J90: 市政公共基础设施（城市排水和污水处理设施） | K90: 5.7307 | L90: 4.0100 | M90: 4.1295 | N90: 2.9000 | O90: 0.0000 | P90: 14.9229
B91: 大亚湾开发区 | E91: 0.53 | J91: 市政公共基础设施（供水设施） | K91: 6.0345 | L91: 4.0893 | M91: 3.3686 | N91: 3.0893 | O91: 0.0000 | P91: 11.0130
A92: VALID# | B92: 2024年广东省政府专项债券（一期） | C92: 2405018 | D92: 其他领域专项债券 | E92: 1.50 | F92: 2024 | G92: 2024-01-29 | H92: 2.54 | I92: 7年 | K92: =K93 -> 18.3962 | L92: 13.8200 | M92: 7.8800 | N92: 3.9800 | O92: 0.0000 | P92: 29.9900 | R92: 2024 | S92: c3ef5005bf4911ee96ae30fd653ec18b
B93: 其中：市直 | E93: 1.50 | J93: 市政公共基础设施（城市道路） | K93: 18.3962 | L93: 13.8200 | M93: 7.8800 | N93: 3.9800 | O93: 0.0000 | P93: 29.9900
A94: VALID# | B94: 2024年广东省政府专项债券（三十七期） | C94: 2405337 | D94: 其他领域专项债券 | E94: 0.19 | F94: 2024 | G94: 2024-05-29 | H94: 2.62 | I94: 20年 | J94: 市政公共基础设施（城市道路） | K94: =K95 -> 24.4903 | L94: 14.0900 | M94: 0.1900 | N94: 0.1900 | O94: 0.0000 | P94: 49.7282 | R94: 2024 | S94: c6f7c8031d8711ef96ae30fd653ec18b
B95: 仲恺高新区 | E95: 0.19 | J95: 市政公共基础设施（城市道路） | K95: 24.4903 | L95: 14.0900 | M95: 0.1900 | N95: 0.1900 | O95: 0.0000 | P95: 49.7282
A96: VALID# | B96: 2024年广东省政府专项债券（七十六期） | C96: 2471080 | D96: 其他领域专项债券 | E96: 7.28 | F96: 2024 | G96: 2024-10-22 | H96: 2.28 | I96: 15年 | J96: 公共基础设施,市政公共基础设施（城市道路） | K96: =K97+K98+K99 -> 385.8882 | L96: 134.4773 | M96: 134.1273 | N96: 86.5873 | O96: 0.0000 | P96: 475.2434 | R96: 2024 | S96: cb947e9f8f5011efbb8bf4b78df33865
B97: 其中：市直 | E97: 1.67 | J97: 交通公共基础设施（铁路）、其他公共基础设施 | K97: 48.0497 | L97: 27.8380 | M97: 34.9539 | N97: 21.3480 | O97: 0 | P97: 80.8500
B98: 仲恺高新区 | E98: 4.62 | J98: 公共基础设施,市政公共基础设施（城市道路） | K98: 104.5346 | L98: 40.8200 | M98: 30.7747 | N98: 29.5000 | O98: 0.0000 | P98: 217.4602
B99: 大亚湾开发区 | E99: 0.99 | J99: 市政公共基础设施（公共文化体育设施）,市政公共基础设施（供水设施）,市政公共基础设施（其他市政基础设施） | K99: 233.3039 | L99: 65.8193 | M99: 68.3987 | N99: 35.7393 | O99: 0.0000 | P99: 176.9332
A100: VALID# | B100: 2024年广东省政府专项债券（三十九期） | C100: 2405339 | D100: 其他领域专项债券 | E100: 1.40 | F100: 2024 | G100: 2024-05-29 | H100: 2.36 | I100: 10年 | K100: =K101 -> 9.1676 | L100: 6.6405 | M100: 5.0164 | N100: 4.4500 | O100: 0.0000 | P100: 9.7500 | R100: 2024 | S100: cff6110c1d8711ef96ae30fd653ec18b
B101: 其中：市直 | E101: 1.40 | J101: 市政公共基础设施（城市排水和污水处理设施）、其他公共基础设施 | K101: 9.1676 | L101: 6.6405 | M101: 5.0164 | N101: 4.4500 | O101: 0.0000 | P101: 9.7500
A102: VALID# | B102: 2024年广东省政府专项债券（十九期） | C102: 198460 | D102: 其他领域专项债券 | E102: 1.37 | F102: 2024 | G102: 2024-03-27 | H102: 2.65 | I102: 15年 | K102: =K103+K104 -> 19.3407 | L102: 11.4900 | M102: 11.6080 | N102: 10.6300 | O102: 0.0000 | P102: 53.7611 | R102: 2024 | S102: d20bb13bed7211ee96ae30fd653ec18b
B103: 仲恺高新区 | E103: 1.05 | J103: 市政公共基础设施（城市排水和污水处理设施）,市政公共基础设施（城市道路） | K103: 9.3936 | L103: 3.6800 | M103: 3.3024 | N103: 3.2200 | O103: 0.0000 | P103: 12.6070
B104: 大亚湾开发区 | E104: 0.32 | J104: 市政公共基础设施（其他市政基础设施） | K104: 9.9471 | L104: 7.8100 | M104: 8.3056 | N104: 7.4100 | O104: 0.0000 | P104: 41.1541
A105: VALID# | B105: 2024年广东省政府专项债券（七十五期） | C105: 2471079 | D105: 其他领域专项债券 | E105: 4.36 | F105: 2024 | G105: 2024-10-22 | H105: 2.17 | I105: 10年 | J105: 其他公共基础设施 | K105: =K106+K107+K108 -> 253.0369 | L105: 99.4070 | M105: 97.0331 | N105: 65.1305 | O105: 0.0000 | P105: 280.3638 | R105: 2024 | S105: d5c5a1078f4f11efbb8bf4b78df33865
B106: 其中：市直 | E106: 1.27 | J106: 其他公共基础设施、交通公共基础设施（港口） | K106: 18.4584 | L106: 7.0865 | M106: 5.9929 | N106: 3.3100 | O106: 0.0000 | P106: 30.0856
B107: 仲恺高新区 | E107: 0.77 | J107: 其他公共基础设施 | K107: 36.4188 | L107: 17.8800 | M107: 14.0301 | N107: 13.8800 | O107: 0.0000 | P107: 59.3900
B108: 大亚湾开发区 | E108: 2.32 | J108: 市政公共基础设施（城市排水和污水处理设施）,市政公共基础设施（其他市政基础设施） | K108: 198.1597 | L108: 74.4405 | M108: 77.0101 | N108: 47.9405 | O108: 0.0000 | P108: 190.8883
A109: VALID# | B109: 2024年广东省政府专项债券（十五期） | C109: 198456 | D109: 其他领域专项债券 | E109: 1.90 | F109: 2024 | G109: 2024-03-27 | H109: 2.66 | I109: 15年 | J109: 公共基础设施,市政公共基础设施（城市排水和污水处理设施）,市政公共基础设施（城市道路） | K109: =K110+K111 -> 166.8641 | L109: 57.1400 | M109: 59.5534 | N109: 36.7000 | O109: 0.0000 | P109: 184.3767 | R109: 2024 | S109: d87db654ed6f11ee96ae30fd653ec18b
B110: 仲恺高新区 | E110: 1.17 | J110: 公共基础设施,市政公共基础设施（城市排水和污水处理设施）,市政公共基础设施（城市道路） | K110: 53.9741 | L110: 25.1400 | M110: 18.7400 | N110: 18.7000 | O110: 0.0000 | P110: 98.5000
B111: 大亚湾开发区 | E111: 0.73 | J111: 市政公共基础设施（其他市政基础设施） | K111: 112.8900 | L111: 32.0000 | M111: 40.8134 | N111: 18.0000 | O111: 0.0000 | P111: 85.8768
A112: VALID# | B112: 2024年广东省政府专项债券（二十五期） | C112: 2405272 | D112: 其他领域专项债券 | E112: 6.59 | F112: 2024 | G112: 2024-05-08 | H112: 2.62 | I112: 20年 | J112: 市政公共基础设施（城市道路） | K112: =K113+K114 -> 155.7168 | L112: 54.7648 | M112: 47.8259 | N112: 31.1649 | O112: 0.0000 | P112: 174.4490 | R112: 2024 | S112: d917b5a90dc111ef96ae30fd653ec18b
B113: 仲恺高新区 | E113: 1.39 | J113: 市政公共基础设施（城市道路） | K113: 37.1219 | L113: 19.3400 | M113: 14.7396 | N113: 14.4000 | O113: 0.0000 | P113: 81.3365
B114: 大亚湾开发区 | E114: 5.20 | J114: 市政公共基础设施（其他市政基础设施） | K114: 118.5949 | L114: 35.4248 | M114: 33.0863 | N114: 16.7649 | O114: 0.0000 | P114: 93.1125
A115: VALID# | B115: 2024年广东省政府专项债券（五十期） | C115: 198505 | D115: 其他领域专项债券 | E115: 0.10 | F115: 2024 | G115: 2024-06-12 | H115: 2.33 | I115: 10年 | K115: =K116 -> 2.3669 | L115: 1.2005 | M115: 1.0664 | N115: 0.5000 | O115: 0.0000 | P115: 1.3500 | R115: 2024 | S115: e3e318de27a011efab9630fd653ec18b
B116: 其中：市直 | E116: 0.10 | J116: 市政公共基础设施（城市排水和污水处理设施） | K116: 2.3669 | L116: 1.2005 | M116: 1.0664 | N116: 0.5000 | O116: 0.0000 | P116: 1.3500
A117: VALID# | B117: 2024年广东省政府专项债券（二十一期） | C117: 2405268 | D117: 其他领域专项债券 | E117: 1.28 | F117: 2024 | G117: 2024-05-08 | H117: 2.2 | I117: 5年 | J117: 市政公共基础设施（其他市政基础设施） | K117: =K118 -> 26.7224 | L117: 19.9000 | M117: 12.6420 | N117: 6.5000 | O117: 0.0000 | P117: 44.3800 | R117: 2024 | S117: e92f61fd0dd311ef96ae30fd653ec18b
B118: 其中：市直 | E118: 1.28 | J118: 市政公共基础设施（城市道路）、其他公共基础设施 | K118: 26.7224 | L118: 19.9000 | M118: 12.6420 | N118: 6.5000 | O118: 0.0000 | P118: 44.3800
A119: VALID# | B119: 2024年广东省政府专项债券（七十一期） | C119: 2405984 | D119: 其他领域专项债券 | E119: 0.30 | F119: 2024 | G119: 2024-09-25 | H119: 2.17 | I119: 15年 | K119: =K120 -> 34.4514 | L119: 26.1100 | M119: 0.8111 | N119: 0.3000 | O119: 0.0000 | P119: 138.3953 | R119: 2024 | S119: ea5bdf527b1511efbb8bf4b78df33865
B120: 仲恺高新区 | E120: 0.30 | J120: 其他公共基础设施 | K120: 34.4514 | L120: 26.1100 | M120: 0.8111 | N120: 0.3000 | O120: 0.0000 | P120: 138.3953
A121: VALID# | B121: 2024年广东省政府专项债券（六十五期） | C121: 198556 | D121: 其他领域专项债券 | E121: 1.45 | F121: 2024 | G121: 2024-08-30 | H121: 2.41 | I121: 30年 | K121: =K122+K123 -> 131.5640 | L121: 33.2500 | M121: 20.9291 | N121: 18.8900 | O121: 0.0000 | P121: 125.7814 | R121: 2024 | S121: ee97411b690611efbb8bf4b78df33865
B122: 仲恺高新区 | E122: 1.25 | J122: 其他公共基础设施,市政公共基础设施（城市道路） | K122: 69.1249 | L122: 20.1800 | M122: 13.1266 | N122: 12.9800 | O122: 0.0000 | P122: 85.3241
B123: 大亚湾开发区 | E123: 0.20 | J123: 市政公共基础设施（其他市政基础设施） | K123: 62.4391 | L123: 13.0700 | M123: 7.8025 | N123: 5.9100 | O123: 0.0000 | P123: 40.4572
A124: VALID# | B124: 2024年广东省政府专项债券（五十六期） | C124: 231916 | D124: 其他领域专项债券 | E124: 0.25 | F124: 2024 | G124: 2024-08-06 | H124: 2.36 | I124: 20年 | K124: =K125 -> 38.4561 | L124: 26.1100 | M124: 0.2500 | N124: 0.2500 | O124: 0.0000 | P124: 141.2557 | R124: 2024 | S124: f86a4add53d611ef8dbdf4b78dd65761
B125: 仲恺高新区 | E125: 0.25 | J125: 交通公共基础设施（铁路），市政公共基础设施（城市道路） | K125: 38.4561 | L125: 26.1100 | M125: 0.2500 | N125: 0.2500 | O125: 0.0000 | P125: 141.2557
A126: VALID# | B126: 2024年广东省政府专项债券（七十三期） | C126: 2405986 | D126: 其他领域专项债券 | E126: 6.19 | F126: 2024 | G126: 2024-09-25 | H126: 2.21 | I126: 30年 | J126: 市政公共基础设施（其他市政基础设施） | K126: =K127+K128 -> 90.1476 | L126: 40.1500 | M126: 33.3079 | N126: 29.9900 | O126: 0.0000 | P126: 173.4021 | R126: 2024 | S126: fabc1dad7b1711efbb8bf4b78df33865
B127: 其中：市直 | E127: 5.08 | J127: 交通公共基础设施（铁路）、市政公共基础设施（公共文化体育设施） | K127: 16.1668 | L127: 15.2800 | M127: 13.7653 | N127: 13.7500 | O127: 0.0000 | P127: 56.2400
B128: 仲恺高新区 | E128: 1.11 | J128: 市政公共基础设施（其他市政基础设施） | K128: 73.9808 | L128: 24.8700 | M128: 19.5426 | N128: 16.2400 | O128: 0.0000 | P128: 117.1621
A129: VALID# | B129: 2024年广东省政府专项债券（七十期） | C129: 2405983 | D129: 其他领域专项债券 | E129: 3.27 | F129: 2024 | G129: 2024-09-25 | H129: 2.1 | I129: 10年 | J129: 其他公共基础设施,市政公共基础设施（城市道路） | K129: =K130+K131 -> 180.1663 | L129: 109.6646 | M129: 96.1287 | N129: 68.3020 | O129: 0.0000 | P129: 365.1271 | R129: 2024 | S129: ff3b9fb77b1411efbb8bf4b78df33865
B130: 其中：市直 | E130: 2.57 | J130: 市政公共基础设施（城市道路）、其他公共基础设施、市政公共基础设施（城市排水和污水处理设施）、交通公共基础设施（铁路）、市政公共基础设施（公共文化体育设施） | K130: 107.0339 | L130: 65.3846 | M130: 58.7136 | N130: 38.4180 | O130: 0.0000 | P130: 155.4130
B131: 仲恺高新区 | E131: 0.70 | J131: 其他公共基础设施,市政公共基础设施（城市道路） | K131: 73.1324 | L131: 44.2800 | M131: 37.4152 | N131: 29.8840 | O131: 0.0000 | P131: 209.7141
B132: 注：本表由使用债券资金的部门不迟于每年6月底前公开，反映截至上年末专项债券及项目信息。

Sheet 表3-2 新增地方政府一般债券资金收支情况表
A1: 0 | B1: DEBT_T_XXGK_CXSRZC | C1: AND T.AD_CODE_GK=44 AND T.SET_YEAR_GK=2025 AND T.ZWLB_ID='01'
A2: 0 | B2: AD_CODE_GK#441300 | C2: AD_CODE#441300 | D2: SET_YEAR_GK#2025 | F2: AD_NAME#441300 惠州市本级 | G2: SET_YEAR#2025 | H2: ZWLB_ID#01
A3: 0 | C3: ZQ_NAME# | D3: SR_AMT# | E3: ZQ_ID# | F3: GNFL_NAME# | G3: ZC_AMT# | H3: GNFL_CODE# | I3: GNFL_CODE#
A4: 0 | B4: 表3-2
A5: 0 | B5: 2024年惠州市本级发行的新增地方政府一般债券资金收支情况表
A6: 0 | G6: 单位：亿元
A7: 0 | B7: 序号 | C7: 2024年新增一般债券资金收入 | F7: 2024年新增一般债券资金安排的支出
A8: 0 | C8: 债券名称 | D8: 金额 | F8: 支出功能分类 | G8: 金额
A9: 0 | B9: 合计 | C9: 此表格无数据

Sheet 表3-2 新增地方政府专项债券资金收支情况表
A1: 0 | B1: DEBT_T_XXGK_CXSRZC | C1: AND T.AD_CODE_GK=44 AND T.SET_YEAR_GK=2025 AND T.ZWLB_ID='02'
A2: 0 | B2: AD_CODE_GK#441300 | C2: AD_CODE#441300 | D2: SET_YEAR_GK#2025 | F2: AD_NAME#441300 惠州市本级 | G2: SET_YEAR#2025 | H2: ZWLB_ID#02
A3: 0 | C3: ZQ_NAME# | D3: SR_AMT# | E3: ZQ_ID# | F3: GNFL_NAME# | G3: ZC_AMT# | H3: GNFL_CODE#
A4: 0 | B4: 表3-2
A5: 0 | B5: 2024年惠州市本级发行的新增地方政府专项债券资金收支情况表
A6: 0 | G6: 单位：亿元
A7: 0 | B7: 序号 | C7: 2024年新增专项债券资金收入 | F7: 2024年新增专项债券资金安排的支出
A8: 0 | C8: 债券名称 | D8: 金额 | F8: 支出功能分类 | G8: 金额
A9: 0 | B9: 合计 | D9: =D10+D13+D15+D17+D19+D22+D24+D27+D30+D33+D35+D37+D39+D41+D45+D47+D49+D51+D54+D58+D61+D63+D66+D68+D71+D73+D75+D77+D79+D82+D86+D90+D92+D95+D97+D100+D102+D104+D106+D109+D111+D114+D117+D119+D122+D125+D129 -> 102.00 | F9: 229其他支出 | G9: 102.00
A10: VALID# | C10: 2024年广东省政府专项债券（二十四期） | D10: 2.82 | E10: 2827bd630dcd11ef96ae30fd653ec18b | F10: 其中：市直 | G10: 32.50
C11: 仲恺高新区 | D11: 1.96 | F11: 仲恺高新区 | G11: 40.50
C12: 大亚湾开发区 | D12: 0.86 | F12: 大亚湾开发区 | G12: 29.00
A13: VALID# | C13: 2024年广东省政府专项债券（七十八期） | D13: 3.42 | E13: bc36247d8f5311efbb8bf4b78df33865
C14: 仲恺高新区 | D14: 3.42
A15: VALID# | C15: 2024年广东省政府专项债券（二十三期） | D15: 0.12 | E15: 1efea5b90dd511ef96ae30fd653ec18b
C16: 其中：市直 | D16: 0.12
A17: VALID# | C17: 2024年广东省政府专项债券（六十八期） | D17: 1.35 | E17: b3791ccd7afb11efbb8bf4b78df33865
C18: 其中：市直 | D18: 1.35
A19: VALID# | C19: 2024年广东省政府专项债券（二十六期） | D19: 1.70 | E19: 19d197e30dce11ef96ae30fd653ec18b
C20: 仲恺高新区 | D20: 0.20
C21: 大亚湾开发区 | D21: 1.50
A22: VALID# | C22: 2024年广东省政府专项债券（七十四期） | D22: 1.36 | E22: a54f20e58f4e11efbb8bf4b78df33865
C23: 其中：市直 | D23: 1.36
A24: VALID# | C24: 2024年广东省政府专项债券（七十三期） | D24: 6.19 | E24: fabc1dad7b1711efbb8bf4b78df33865
C25: 其中：市直 | D25: 5.08
C26: 仲恺高新区 | D26: 1.11
A27: VALID# | C27: 2024年广东省政府专项债券（六十四期） | D27: 3.19 | E27: 0011aa80690b11efbb8bf4b78df33865
C28: 仲恺高新区 | D28: 2.89
C29: 大亚湾开发区 | D29: 0.30
A30: VALID# | C30: 2024年广东省政府专项债券（六十五期） | D30: 1.45 | E30: ee97411b690611efbb8bf4b78df33865
C31: 仲恺高新区 | D31: 1.25
C32: 大亚湾开发区 | D32: 0.20
A33: VALID# | C33: 2024年广东省政府专项债券（十三期） | D33: 0.19 | E33: 8f9c5f33ed7011ee96ae30fd653ec18b
C34: 其中：市直 | D34: 0.19
A35: VALID# | C35: 2024年广东省政府专项债券（二十一期） | D35: 1.28 | E35: e92f61fd0dd311ef96ae30fd653ec18b
C36: 其中：市直 | D36: 1.28
A37: VALID# | C37: 2024年广东省政府专项债券（四期） | D37: 2.20 | E37: 73a08e00bf4b11ee96ae30fd653ec18b
C38: 仲恺高新区 | D38: 2.20
A39: VALID# | C39: 2024年广东省政府专项债券（十六期） | D39: 1.52 | E39: 6a3bf6fded6d11ee96ae30fd653ec18b
C40: 仲恺高新区 | D40: 1.52
A41: VALID# | C41: 2024年广东省政府专项债券（七十五期） | D41: 4.36 | E41: d5c5a1078f4f11efbb8bf4b78df33865
C42: 其中：市直 | D42: 1.27
C43: 仲恺高新区 | D43: 0.77
C44: 大亚湾开发区 | D44: 2.32
A45: VALID# | C45: 2024年广东省政府专项债券（三十九期） | D45: 1.40 | E45: cff6110c1d8711ef96ae30fd653ec18b
C46: 其中：市直 | D46: 1.40
A47: VALID# | C47: 2024年广东省政府专项债券（六十期） | D47: 0.20 | E47: 4276b997690211efbb8bf4b78df33865
C48: 其中：市直 | D48: 0.20
A49: VALID# | C49: 2024年广东省政府专项债券（三十七期） | D49: 0.19 | E49: c6f7c8031d8711ef96ae30fd653ec18b
C50: 仲恺高新区 | D50: 0.19
A51: VALID# | C51: 2024年广东省政府专项债券（二十八期） | D51: 4.27 | E51: 3d75ea320dcf11ef96ae30fd653ec18b
C52: 仲恺高新区 | D52: 0.25
C53: 大亚湾开发区 | D53: 4.02
A54: VALID# | C54: 2024年广东省政府专项债券（七十七期） | D54: 7.58 | E54: bdc68eb08f5111efbb8bf4b78df33865
C55: 其中：市直 | D55: 1.45
C56: 仲恺高新区 | D56: 5.44
C57: 大亚湾开发区 | D57: 0.69
A58: VALID# | C58: 2024年广东省政府专项债券（三十八期） | D58: 0.46 | E58: 26f01d8f1d8611ef96ae30fd653ec18b
C59: 其中：市直 | D59: 0.14
C60: 仲恺高新区 | D60: 0.32
A61: VALID# | C61: 2024年广东省政府专项债券（二十七期） | D61: 0.32 | E61: ba21769b0dd511ef96ae30fd653ec18b
C62: 其中：市直 | D62: 0.32
A63: VALID# | C63: 2024年广东省政府专项债券（十四期） | D63: 1.56 | E63: 1c934c49ed7b11ee96ae30fd653ec18b
C64: 其中：市直 | D64: 1.16
C65: 仲恺高新区 | D65: 0.40
A66: VALID# | C66: 2024年广东省政府专项债券（二期） | D66: 1.00 | E66: 176c09efbf4611ee96ae30fd653ec18b
C67: 仲恺高新区 | D67: 1.00
A68: VALID# | C68: 2024年广东省政府专项债券（七十期） | D68: 3.27 | E68: ff3b9fb77b1411efbb8bf4b78df33865
C69: 其中：市直 | D69: 2.57
C70: 仲恺高新区 | D70: 0.70
A71: VALID# | C71: 2024年广东省政府专项债券（十二期） | D71: 0.55 | E71: 9bddbe9fed7b11ee96ae30fd653ec18b
C72: 其中：市直 | D72: 0.55
A73: VALID# | C73: 2024年广东省政府专项债券（七十一期） | D73: 0.30 | E73: ea5bdf527b1511efbb8bf4b78df33865
C74: 仲恺高新区 | D74: 0.30
A75: VALID# | C75: 2024年广东省政府专项债券（十八期） | D75: 0.40 | E75: 89e165f2ed7811ee96ae30fd653ec18b
C76: 其中：市直 | D76: 0.40
A77: VALID# | C77: 2024年广东省政府专项债券（五十期） | D77: 0.10 | E77: e3e318de27a011efab9630fd653ec18b
C78: 其中：市直 | D78: 0.10
A79: VALID# | C79: 2024年广东省政府专项债券（二十五期） | D79: 6.59 | E79: d917b5a90dc111ef96ae30fd653ec18b
C80: 仲恺高新区 | D80: 1.39
C81: 大亚湾开发区 | D81: 5.20
A82: VALID# | C82: 2024年广东省政府专项债券（三十五期） | D82: 4.64 | E82: 67c651a51d8711ef96ae30fd653ec18b
C83: 其中：市直 | D83: 1.00
C84: 仲恺高新区 | D84: 2.64
C85: 大亚湾开发区 | D85: 1.00
A86: VALID# | C86: 2024年广东省政府专项债券（三十六期） | D86: 3.50 | E86: 41aec83b1d8711ef96ae30fd653ec18b
C87: 其中：市直 | D87: 0.66
C88: 仲恺高新区 | D88: 0.58
C89: 大亚湾开发区 | D89: 2.26
A90: VALID# | C90: 2024年广东省政府专项债券（一期） | D90: 1.50 | E90: c3ef5005bf4911ee96ae30fd653ec18b
C91: 其中：市直 | D91: 1.50
A92: VALID# | C92: 2024年广东省政府专项债券（七十二期） | D92: 2.30 | E92: 304870a37b1611efbb8bf4b78df33865
C93: 其中：市直 | D93: 0.66
C94: 仲恺高新区 | D94: 1.64
A95: VALID# | C95: 2024年广东省政府专项债券（四十一期） | D95: 1.67 | E95: bd89c05d1d8711ef96ae30fd653ec18b
C96: 其中：市直 | D96: 1.67
A97: VALID# | C97: 2024年广东省政府专项债券（四十期） | D97: 0.84 | E97: b7d023fb1d8811ef96ae30fd653ec18b
C98: 仲恺高新区 | D98: 0.14
C99: 大亚湾开发区 | D99: 0.70
A100: VALID# | C100: 2024年广东省政府专项债券（六十三期） | D100: 0.32 | E100: a71e6275690511efbb8bf4b78df33865
C101: 大亚湾开发区 | D101: 0.32
A102: VALID# | C102: 2024年广东省政府专项债券（二十九期） | D102: 0.90 | E102: a2857acd0dcd11ef96ae30fd653ec18b
C103: 仲恺高新区 | D103: 0.90
A104: VALID# | C104: 2024年广东省政府专项债券（五十六期） | D104: 0.25 | E104: f86a4add53d611ef8dbdf4b78dd65761
C105: 仲恺高新区 | D105: 0.25
A106: VALID# | C106: 2024年广东省政府专项债券（六十二期） | D106: 5.51 | E106: 990053a7690811efbb8bf4b78df33865
C107: 其中：市直 | D107: 0.23
C108: 大亚湾开发区 | D108: 5.28
A109: VALID# | C109: 2024年广东省政府专项债券（三十四期） | D109: 2.00 | E109: 76d14a381d8611ef96ae30fd653ec18b
C110: 其中：市直 | D110: 2.00
A111: VALID# | C111: 2024年广东省政府专项债券（四十七期） | D111: 1.35 | E111: 6d8c7e30279f11efab9630fd653ec18b
C112: 其中：市直 | D112: 0.42
C113: 大亚湾开发区 | D113: 0.93
A114: VALID# | C114: 2024年广东省政府专项债券（十五期） | D114: 1.90 | E114: d87db654ed6f11ee96ae30fd653ec18b
C115: 仲恺高新区 | D115: 1.17
C116: 大亚湾开发区 | D116: 0.73
A117: VALID# | C117: 2024年广东省政府专项债券（三期） | D117: 0.85 | E117: 62e1a921bf4911ee96ae30fd653ec18b
C118: 大亚湾开发区 | D118: 0.85
A119: VALID# | C119: 2024年广东省政府专项债券（五期） | D119: 4.75 | E119: 528c2bd9bf4c11ee96ae30fd653ec18b
C120: 其中：市直 | D120: 3.25
C121: 仲恺高新区 | D121: 1.50
A122: VALID# | C122: 2024年广东省政府专项债券（十九期） | D122: 1.37 | E122: d20bb13bed7211ee96ae30fd653ec18b
C123: 仲恺高新区 | D123: 1.05
C124: 大亚湾开发区 | D124: 0.32
A125: VALID# | C125: 2024年广东省政府专项债券（七十六期） | D125: 7.28 | E125: cb947e9f8f5011efbb8bf4b78df33865
C126: 其中：市直 | D126: 1.67
C127: 仲恺高新区 | D127: 4.62
C128: 大亚湾开发区 | D128: 0.99
A129: VALID# | C129: 2024年广东省政府专项债券（七期） | D129: 1.73 | E129: c10f5a6cbf4811ee96ae30fd653ec18b
C130: 其中：市直 | D130: 0.50
C131: 仲恺高新区 | D131: 0.70
C132: 大亚湾开发区 | D132: 0.53
